bitfinex/quotes_ETHUSD_20251218
["timestamp","ask_amount","ask_price","bid_price","bid_amount"]
[1766076572285,0.46438023,2949.9,2948.5,5.66356642]
[1766076572482,1.5297,2949.6,2948.5,2.27205668]
[1766076572664,0.9421,2949.5,2948.6,0.22730567]
[1766076572986,2.93618023,2949.7,2948.7,1.3933]
[1766076573150,5.8620902,2949.6,2948.7,1.3933]
[1766076573350,2.4718,2949.6,2948.7,1.3933]
[1766076573581,2.4718,2949.6,2949.4,0.001]
[1766076573783,0.63263984,2949.5,2948.7,1.3933]
[1766076574161,2.4718,2949.6,2948.7,1.3933]
[1766076574375,0.46438023,2949.8,2948.8,0.8521]
[1766076574555,2.4718,2950.1,2948.7,6.78260049]
[1766076574881,0.542,2949.9,2948.7,6.78260049]
[1766076575086,0.542,2949.9,2948.8,0.8521]
[1766076575288,0.542,2949.9,2949.0,1.3985]
[1766076575496,0.46438023,2949.8,2948.9,0.76347005]
[1766076575787,2.4718,2949.7,2948.8,1.4011]
[1766076576088,0.542,2949.9,2949.0,1.4011]
[1766076576608,0.46438023,2949.8,2949.0,1.4011]
[1766076576893,1.5297,2949.4,2948.5,0.542]
[1766076577191,0.46438023,2949.5,2948.6,5.18835565]
[1766076577490,1.5297,2949.4,2948.6,0.39345935]
[1766076577696,2.4718,2949.2,2948.5,0.542]
[1766076578186,0.9421,2948.9,2948.4,0.001]
[1766076578392,0.542,2948.8,2948.4,0.001]
[1766076578960,2.877304,2949.4,2948.4,0.8581]
[1766076579172,2.877304,2949.4,2948.4,1.4095]
[1766076579173,0.542,2949.3,2948.4,1.4095]
[1766076579371,2.93618023,2949.2,2948.4,0.001]
[1766076579591,0.46438023,2949.1,2948.4,0.001]
[1766076579794,0.46438023,2949.2,2948.4,0.001]
[1766076579992,1.5297,2949.0,2948.4,0.001]
[1766076580189,0.542,2948.9,2948.4,0.001]
[1766076580497,0.542,2949.0,2948.4,0.001]
[1766076581282,3.0138,2949.0,2948.4,0.001]
[1766076582261,3.013,2949.0,2948.4,0.001]
[1766076582467,1.00558023,2949.0,2948.4,0.001]
[1766076582790,2.6583,2949.3,2948.4,0.001]
[1766076582993,0.46438023,2949.2,2948.4,0.001]
[1766076583165,2.1983,2949.3,2948.5,0.5574]
[1766076583366,2.1983,2949.3,2948.6,0.0339144]
[1766076583566,1.6563,2949.3,2948.6,0.430682]
[1766076583778,0.542,2949.4,2948.6,0.5585]
[1766076583998,1.46638023,2949.5,2948.6,0.8832]
[1766076584179,2.00838023,2949.5,2948.6,0.8832]
[1766076584496,2.00838023,2949.5,2948.4,0.8871]
[1766076584497,4.93441531,2949.5,2948.4,0.8871]
[1766076584697,0.46438023,2949.4,2948.4,0.8871]
[1766076584868,0.46438023,2949.4,2948.5,0.42798335]
[1766076584869,2.6583,2949.3,2948.5,0.42798335]
[1766076585394,3.85494054,2949.4,2948.5,0.42798335]
[1766076585698,2.6583,2949.3,2948.4,0.001]
[1766076585870,2.6583,2949.3,2948.5,3.95100886]
[1766076586573,2.6583,2949.3,2948.5,0.5595]
[1766076586771,2.6583,2949.3,2948.4,0.3224]
[1766076587310,3.93182656,2950.1,2948.8,3.39120998]
[1766076587470,1.002,2949.9,2948.9,1.197521]
[1766076587672,2.6583,2949.8,2948.9,0.8584]
[1766076587906,0.5817826,2950.0,2948.9,0.542]
[1766076588083,1.6563,2949.6,2948.9,0.542]
[1766076588400,2.6583,2949.6,2948.5,3.70301]
[1766076588571,0.542,2949.7,2948.6,0.370401]
[1766076588771,2.6583,2949.4,2948.5,0.4071]
[1766076589006,0.542,2949.3,2948.4,0.001]
[1766076589301,2.6583,2949.1,2948.4,0.001]
[1766076589802,0.542,2949.3,2948.4,0.3987]
[1766076589995,0.542,2949.2,2948.4,0.3987]
[1766076590397,0.542,2949.4,2948.5,0.3018]
[1766076591272,1.002,2949.2,2948.4,0.001]
[1766076591478,2.6583,2949.1,2948.4,0.42439336]
[1766076591986,2.00838023,2949.4,2948.4,3.68499283]
[1766076592703,3.66468023,2949.4,2948.4,3.68499283]
[1766076593202,3.39232333,2949.6,2948.4,3.68499283]
[1766076593203,0.542,2949.3,2948.5,0.32171555]
[1766076593398,0.542,2949.3,2948.5,0.2878]
[1766076593707,0.542,2949.3,2948.6,0.36803928]
[1766076594093,0.542,2949.3,2948.4,0.001]
[1766076594298,2.6583,2949.0,2948.4,0.001]
[1766076595408,0.542,2949.3,2948.4,0.001]
[1766076595611,0.46438023,2949.0,2948.1,0.601]
[1766076595909,0.46438023,2949.1,2948.2,0.4543]
[1766076596977,0.542,2949.3,2948.3,0.2697]
[1766076597203,0.46438023,2949.4,2948.3,0.2697]
[1766076597503,1.00638023,2949.4,2948.3,0.2697]
[1766076597676,1.00638023,2949.4,2948.5,0.2653]
[1766076597878,1.00638023,2949.4,2948.2,0.1801]
[1766076597879,1.6563,2949.2,2948.2,0.1801]
[1766076598090,0.46438023,2949.3,2947.2,0.001]
[1766076598091,0.09414929,2948.3,2947.2,0.001]
[1766076598286,0.542,2948.2,2947.2,3.3940369]
[1766076598605,1.002,2948.3,2947.4,1.6491]
[1766076598794,1.002,2948.3,2947.5,0.21911]
[1766076599320,1.6563,2948.1,2947.4,0.542]
[1766076599485,1.002,2948.5,2947.5,1.6491]
[1766076599815,1.002,2948.4,2948.1,0.001]
[1766076600015,1.46638023,2948.3,2947.5,1.6491]
[1766076600182,1.46638023,2948.3,2947.6,0.21911]
[1766076600596,0.46438023,2948.3,2947.2,0.001]
[1766076600897,2.02738023,2947.8,2947.2,0.001]
[1766076601104,0.542,2947.7,2946.2,1.569]
[1766076601441,0.542,2947.7,2945.8,1.57]
[1766076601442,1.563,2947.0,2945.8,1.57]
[1766076601602,2.5402,2946.6,2945.8,0.001]
[1766076601787,0.9772,2946.9,2945.9,1.569]
[1766076601988,4.83436826,2947.5,2946.1,1.569]
[1766076602215,4.83436826,2947.5,2945.8,0.001]
[1766076602216,0.9772,2947.3,2946.2,2.3221]
[1766076602424,0.9772,2947.3,2946.3,1.569]
[1766076602639,1.563,2947.4,2946.3,1.569]
[1766076602801,0.9772,2947.4,2946.3,1.569]
[1766076602987,0.46438023,2947.5,2946.3,1.569]
[1766076603192,0.46438023,2947.5,2946.4,0.23221]
[1766076603193,0.46438023,2947.3,2946.4,0.23221]
[1766076603495,0.49965329,2947.2,2946.1,0.542]
[1766076603697,0.9772,2946.7,2946.0,0.542]
[1766076604109,0.9772,2946.7,2946.1,0.542]
[1766076604340,0.46438023,2947.3,2946.2,1.60294202]
[1766076604538,1.563,2947.9,2946.6,1.569]
[1766076604744,0.9772,2947.6,2946.6,2.111]
[1766076605049,1.44158023,2947.6,2946.7,1.569]
[1766076605355,2.5402,2947.7,2946.7,0.542]
[1766076605582,1.44158023,2947.6,2946.8,3.42744671]
[1766076605729,1.44158023,2947.6,2946.9,0.39694467]
[1766076606046,1.563,2947.7,2946.9,0.39694467]
[1766076606252,0.9772,2947.9,2947.0,1.569]
[1766076606431,0.9772,2948.3,2947.0,1.569]
[1766076606753,0.542,2948.4,2947.0,1.569]
[1766076606754,0.9772,2948.1,2947.1,0.542]
[1766076607065,1.563,2948.1,2947.2,0.7531]
[1766076607233,1.563,2948.1,2947.2,2.111]
[1766076607838,0.46438023,2948.0,2946.9,0.39694467]
[1766076608043,1.563,2947.9,2947.0,0.542]
[1766076608434,0.46438023,2948.2,2947.1,1.569]
[1766076608748,2.02738023,2948.2,2947.2,0.2111]
[1766076608943,0.9772,2948.1,2947.2,0.2111]
[1766076609254,1.563,2948.1,2947.2,0.2111]
[1766076609555,0.9772,2948.0,2947.2,0.2111]
[1766076609853,1.01913078,2948.9,2947.2,0.2111]
[1766076610055,2.5402,2948.8,2947.3,1.569]
[1766076610220,0.9772,2948.7,2947.3,1.569]
[1766076610421,1.44158023,2948.7,2947.5,1.569]
[1766076610740,0.46438023,2948.5,2947.5,0.542]
[1766076610942,1.563,2948.7,2947.6,1.569]
[1766076611145,1.44158023,2948.6,2947.7,1.7801]
[1766076611929,1.44158023,2948.6,2947.7,3.60357282]
[1766076612130,0.9772,2949.0,2947.8,1.569]
[1766076612541,0.9976,2948.8,2947.9,0.542]
[1766076612751,0.9996,2949.1,2948.0,1.4921]
[1766076613063,0.9996,2949.1,2948.2,1.4921]
[1766076613435,1.46398023,2949.1,2948.2,1.4921]
[1766076614329,4.85484875,2949.1,2948.2,1.4921]
[1766076614871,1.46398023,2949.1,2948.2,1.4921]
[1766076615234,0.002,2948.6,2948.2,1.4921]
[1766076615966,0.002,2948.6,2948.3,0.542]
[1766076616867,0.002,2949.1,2948.4,1.4921]
[1766076618439,0.9996,2949.1,2948.3,0.765751]
[1766076618937,0.002,2949.1,2948.5,1.4921]
[1766076619158,0.002,2949.1,2948.4,3.39161175]
[1766076619159,1.5584,2949.6,2948.7,1.4921]
[1766076619371,0.002,2949.6,2948.8,2.0341]
[1766076619540,0.002,2949.6,2948.9,1.4921]
[1766076620742,0.9996,2949.6,2948.5,1.4921]
[1766076620941,0.9976,2949.4,2948.4,1.4921]
[1766076621245,2.554,2949.4,2948.5,0.542]
[1766076621446,2.8096,2949.4,2948.5,0.542]
[1766076621649,2.8096,2949.4,2948.5,2.0341]
[1766076622471,0.9976,2949.1,2948.3,0.223751]
[1766076622667,2.554,2949.0,2948.4,0.542]
[1766076622883,2.8094,2949.0,2948.4,0.542]
[1766076623163,0.71998023,2949.4,2948.4,0.542]
[1766076623164,2.554,2949.3,2948.4,0.542]
[1766076623375,0.2556,2949.4,2948.6,1.4921]
[1766076624051,0.9976,2949.5,2948.6,1.4921]
[1766076624247,0.9976,2949.1,2948.4,0.542]
[1766076624567,1.5396,2949.4,2948.4,0.542]
[1766076624765,1.5396,2949.4,2948.4,2.0341]
[1766076624964,2.00398023,2949.4,2948.4,0.542]
[1766076625267,2.15705899,2949.3,2948.5,1.4921]
[1766076625453,0.9976,2949.2,2948.4,0.542]
[1766076625648,1.5564,2949.1,2948.4,0.542]
[1766076625975,0.9976,2949.0,2948.4,0.542]
[1766076626271,3.39132499,2948.7,2947.4,1.4921]
[1766076626568,1.5564,2948.2,2947.2,0.542]
[1766076626770,0.9976,2947.8,2946.1,0.001]
[1766076626969,1.5396,2947.8,2946.7,1.4921]
[1766076627270,1.5396,2947.8,2946.8,2.0341]
[1766076627479,0.542,2947.8,2946.9,1.4921]
[1766076627649,0.542,2948.1,2947.1,1.4921]
[1766076627974,0.46438023,2948.2,2947.1,1.4921]
[1766076628272,3.39081522,2949.2,2947.1,1.4921]
[1766076628273,1.46198023,2948.8,2947.7,1.4921]
[1766076628474,3.93294017,2949.1,2947.6,6.78518116]
[1766076628475,1.5396,2949.1,2947.9,1.4921]
[1766076628647,0.46438023,2949.0,2948.1,1.4921]
[1766076628971,2.77801302,2949.1,2948.1,1.4921]
[1766076629176,0.542,2949.1,2948.3,1.4921]
[1766076630273,0.542,2949.1,2948.2,0.542]
[1766076630474,0.9976,2949.0,2948.2,0.542]
[1766076630642,0.542,2949.1,2948.2,2.0341]
[1766076630845,0.542,2949.1,2948.3,0.20341]
[1766076631049,0.542,2949.1,2948.3,1.69551]
[1766076631346,0.542,2949.1,2948.3,0.20341]
[1766076631559,1.5388,2949.1,2948.1,0.542]
[1766076631759,0.9976,2949.1,2948.2,1.4921]
[1766076631963,2.56278023,2949.3,2948.2,1.4921]
[1766076632282,0.46438023,2949.2,2948.2,1.4921]
[1766076632663,0.9976,2949.2,2948.2,1.4921]
[1766076632979,0.542,2949.3,2948.3,1.4921]
[1766076633183,1.00638023,2949.3,2948.3,1.4921]
[1766076633688,0.9976,2949.1,2948.3,1.4921]
[1766076633985,0.9976,2949.1,2948.1,5.42600377]
[1766076635483,1.00638023,2949.3,2948.3,1.4921]
[1766076635655,5.39466688,2949.3,2948.4,0.48839892]
[1766076635861,0.9976,2949.2,2948.3,1.4921]
[1766076636057,0.9976,2949.0,2948.1,0.542]
[1766076636367,2.554,2949.0,2948.2,0.542]
[1766076636568,2.554,2949.0,2948.0,5.08759897]
[1766076636763,2.554,2949.0,2948.1,0.542]
[1766076636968,2.554,2949.0,2948.2,0.5629599]
[1766076637373,2.556,2949.6,2948.3,1.4921]
[1766076637660,2.556,2949.6,2948.5,1.4921]
[1766076637661,0.002,2949.6,2948.5,1.4921]
[1766076637966,0.002,2949.6,2948.7,1.4921]
[1766076638362,0.002,2949.6,2948.9,1.4921]
[1766076638556,0.002,2949.6,2948.6,2.0341]
[1766076638754,0.002,2949.6,2948.7,1.72942324]
[1766076639066,1.5564,2949.1,2948.2,0.5629599]
[1766076639269,0.9976,2949.0,2948.1,1.4921]
[1766076639480,0.9976,2948.9,2948.1,1.4921]
[1766076639880,0.9976,2948.9,2948.6,0.001]
[1766076640755,0.9976,2948.9,2947.7,3.39246386]
[1766076640756,0.9976,2948.7,2947.6,1.4921]
[1766076640961,0.9976,2948.4,2947.5,0.543]
[1766076641160,0.542,2948.6,2947.7,1.4921]
[1766076641474,1.5396,2948.6,2947.7,1.4921]
[1766076641677,3.01838023,2949.0,2947.7,1.4921]
[1766076641893,0.542,2948.7,2947.8,1.4921]
[1766076642086,0.542,2948.7,2947.5,3.93567058]
[1766076642087,0.9976,2948.6,2947.5,2.0351]
[1766076642287,0.9976,2948.4,2947.6,0.54278246]
[1766076642488,0.9607,2948.2,2947.6,0.54278246]
[1766076642797,0.9607,2948.0,2947.5,0.001]
[1766076643471,2.4858,2948.0,2947.5,0.001]
[1766076643808,0.542,2948.3,2947.6,1.5253]
[1766076644007,0.9607,2948.2,2947.5,0.001]
[1766076644310,0.542,2948.3,2947.5,1.5263]
[1766076644481,2.95018023,2949.1,2947.5,1.5263]
[1766076644806,0.9607,2948.8,2947.7,1.5253]
[1766076645012,0.9607,2948.6,2947.7,1.5253]
[1766076645176,2.4858,2948.6,2947.7,1.5253]
[1766076645640,0.9607,2948.5,2947.7,1.5253]
[1766076645808,0.9607,2948.4,2947.6,0.74883]
[1766076645977,0.9607,2948.4,2947.6,0.542]
[1766076646173,0.46438023,2948.7,2947.6,0.542]
[1766076646477,0.542,2948.6,2947.7,1.5253]
[1766076646694,0.542,2948.6,2947.8,1.5253]
[1766076647114,0.9607,2949.1,2948.0,1.5253]
[1766076647402,1.98948023,2949.1,2948.2,1.5253]
[1766076647600,0.46438023,2948.8,2948.1,0.542]
[1766076647797,2.95018023,2949.0,2948.1,0.542]
[1766076648101,2.4858,2949.0,2948.1,0.542]
[1766076648493,5.87679453,2949.0,2948.1,0.542]
[1766076649808,5.87681081,2949.0,2948.1,0.542]
[1766076649987,0.9607,2948.9,2947.9,0.542]
[1766076650187,0.71496023,2949.1,2948.0,0.3991]
[1766076650712,4.10588267,2949.1,2948.0,0.3991]
[1766076651194,7.49680511,2949.1,2948.0,0.3991]
[1766076651400,4.10588267,2949.1,2948.0,0.3991]
[1766076651709,0.002,2949.1,2948.0,0.3991]
[1766076651877,0.002,2949.1,2948.1,0.3968]
[1766076653500,0.9627,2949.1,2948.1,0.3968]
[1766076653709,0.9627,2949.1,2948.1,3.7888084]
[1766076654076,0.46638023,2949.1,2948.2,0.3945]
[1766076654290,0.46638023,2949.1,2948.4,0.3945]
[1766076654908,0.002,2949.1,2948.4,0.3945]
[1766076655288,0.002,2949.6,2948.5,0.3934]
[1766076655488,0.002,2949.6,2948.6,3.39144]
[1766076655809,2.4858,2949.5,2948.7,0.378484]
[1766076656123,2.4858,2949.5,2948.4,3.93362431]
[1766076656326,0.0012,2949.6,2948.6,0.3923]
[1766076656485,1.42628023,2949.6,2948.6,0.3923]
[1766076656685,0.9607,2949.4,2948.4,0.542]
[1766076656886,2.4858,2949.4,2948.4,4.32484462]
[1766076657081,2.4858,2949.4,2948.5,4.21516048]
[1766076657288,0.0012,2949.6,2948.6,0.3912]
[1766076657688,0.0012,2949.6,2948.8,0.3901]
[1766076658009,2.4858,2949.4,2948.3,0.9321]
[1766076658221,0.46558023,2949.6,2948.7,0.3901]
[1766076658512,0.544,2950.3,2948.9,0.389]
[1766076658882,0.002,2950.3,2949.1,0.389]
[1766076659285,0.002,2950.4,2949.1,0.03390865]
[1766076659490,0.002,2950.4,2949.3,0.389]
[1766076659690,0.002,2950.4,2949.5,0.388]
[1766076659906,0.002,2950.4,2949.6,0.82005201]
[1766076660086,0.002,2950.4,2949.6,0.43205201]
[1766076660289,0.002,2950.4,2949.7,0.388]
[1766076660491,0.002,2950.4,2949.6,0.43205201]
[1766076660689,0.002,2950.4,2949.5,0.542]
[1766076660909,0.002,2950.4,2949.6,0.3859]
[1766076661219,0.002,2950.8,2949.7,0.3839]
[1766076661534,1.0384,2950.2,2948.9,0.3829]
[1766076661689,1.0384,2949.8,2948.9,0.84728023]
[1766076661887,1.0384,2949.8,2948.9,4.2383658]
[1766076662158,1.0384,2949.8,2948.9,0.3829]
[1766076662448,1.0384,2949.8,2949.0,0.42383658]
[1766076662717,1.0384,2949.7,2948.8,3.39120226]
[1766076663022,1.0384,2949.7,2948.7,1.00638023]
[1766076663326,1.0384,2949.7,2948.7,1.38828023]
[1766076663627,3.66105468,2950.1,2949.0,0.3809]
[1766076663806,1.74346554,2950.0,2949.0,0.3809]
[1766076664193,3.27156554,2950.0,2949.0,0.3809]
[1766076664931,0.46438023,2950.2,2949.0,0.3809]
[1766076665135,1.21460901,2950.9,2949.1,0.405504]
[1766076665431,1.0404,2950.8,2949.4,0.3799]
[1766076665609,2.5665,2950.6,2949.5,0.379]
[1766076665806,0.002,2950.0,2949.5,0.379]
[1766076666128,0.002,2950.0,2949.6,0.3769484]
[1766076666327,0.002,2950.0,2949.2,3.93268416]
[1766076666624,0.002,2950.0,2949.1,0.46438023]
[1766076666625,0.002,2950.0,2949.1,0.378]
[1766076667020,0.002,2950.0,2949.2,3.39072708]
[1766076667420,0.542,2950.4,2949.5,0.376]
[1766076667609,0.46438023,2950.5,2949.6,3.3902902]
[1766076667930,1.64837292,2950.5,2949.5,3.76634722]
[1766076668163,1.64837292,2950.5,2949.0,0.405504]
[1766076668334,1.64837292,2950.5,2947.7,0.08817445]
[1766076668335,0.46438023,2950.1,2948.7,0.3751]
[1766076668634,2.5665,2949.7,2948.7,0.3741]
[1766076668824,2.5665,2949.7,2948.7,4.22977378]
[1766076669019,2.5665,2949.7,2948.7,0.3741]
[1766076669332,0.55255468,2950.1,2948.8,0.47718647]
[1766076669496,1.00638023,2950.0,2948.6,0.3732]
[1766076669703,1.0384,2949.6,2948.4,0.542]
[1766076669943,3.1085,2949.5,2948.5,0.3732]
[1766076670238,2.5665,2949.4,2948.4,0.542]
[1766076670435,1.0384,2949.3,2948.4,0.542]
[1766076670846,1.5281,2949.4,2948.4,0.542]
[1766076671019,0.542,2949.5,2948.5,0.3723]
[1766076671702,0.542,2949.5,2948.5,3.76384012]
[1766076671939,0.542,2949.5,2948.6,0.43058401]
[1766076672143,1.5804,2949.5,2948.6,0.43058401]
[1766076672341,1.5804,2949.5,2948.5,3.76383377]
[1766076672756,2.01278023,2949.9,2948.6,0.3696]
[1766076672954,1.47078023,2949.9,2948.6,0.3696]
[1766076673133,1.5743,2950.0,2948.6,0.3696]
[1766076673134,1.0064,2950.2,2948.8,0.3696]
[1766076673330,0.542,2950.1,2949.0,0.3696]
[1766076673718,0.002,2949.5,2949.0,0.3696]
[1766076674141,0.002,2949.5,2949.1,0.3688]
[1766076674965,0.002,2950.7,2949.1,0.3688]
[1766076675256,0.002,2950.7,2949.3,0.3679]
[1766076675257,6.51374541,2950.7,2949.3,0.3679]
[1766076675568,3.1247,2950.7,2949.5,0.3679]
[1766076675722,0.46438023,2950.6,2949.5,0.3679]
[1766076675922,3.8535299,2950.6,2949.5,0.3679]
[1766076676258,6.4342299,2950.6,2949.5,0.3679]
[1766076676422,0.69782299,2950.5,2949.6,0.43004005]
[1766076676622,1.70422299,2950.5,2949.6,0.43004005]
[1766076677160,1.70422299,2950.5,2949.5,0.3679]
[1766076677161,3.74290322,2950.5,2949.5,3.75827027]
[1766076677657,0.002,2950.7,2949.6,0.3655]
[1766076678026,0.002,2950.8,2949.8,0.3655]
[1766076678227,0.002,2950.8,2950.0,0.3655]
[1766076679647,0.002,2951.2,2950.2,0.3618]
[1766076679964,0.002,2951.2,2950.3,3.38948581]
[1766076680171,0.002,2951.2,2950.4,1.24274858]
[1766076680369,0.002,2951.3,2950.5,0.3598]
[1766076680552,0.002,2951.5,2950.5,0.3598]
[1766076681059,0.0012,2951.5,2950.5,0.3598]
[1766076681262,0.002,2950.8,2950.5,0.3598]
[1766076681444,0.0012,2951.5,2950.7,0.3563]
[1766076681776,0.002,2951.6,2950.6,0.17051288]
[1766076681777,1.0084,2952.0,2951.0,0.3511]
[1766076682079,0.002,2952.0,2951.2,0.3511]
[1766076682469,0.002,2952.4,2951.3,0.38418337]
[1766076682668,0.002,2952.4,2951.5,0.3503]
[1766076684963,0.002,2952.4,2951.5,3.38810296]
[1766076685158,0.002,2952.4,2951.6,0.6876103]
[1766076685363,1.0064,2953.1,2951.8,0.3448]
[1766076685552,0.002,2953.0,2952.0,0.344]
[1766076686086,0.002,2953.0,2952.2,0.344]
[1766076686287,0.17807481,2953.5,2952.3,0.34]
[1766076686288,0.002,2953.5,2952.3,0.34]
[1766076686460,2.5807,2953.1,2951.9,0.3393]
[1766076686661,2.83877,2953.0,2951.9,3.72684148]
[1766076686866,2.83877,2953.0,2952.0,0.3393]
[1766076687272,0.46438023,2953.4,2952.0,0.3393]
[1766076687482,1.5743,2953.0,2951.9,0.46438023]
[1766076687684,0.541,2953.0,2951.7,1.00538023]
[1766076688191,0.541,2953.2,2952.0,0.3386]
[1766076688485,0.002,2953.0,2952.0,0.3386]
[1766076688668,0.002,2953.0,2952.1,0.37262341]
[1766076689067,1.0064,2952.8,2951.6,0.6766103]
[1766076689378,2.5807,2952.7,2951.6,0.80218023]
[1766076689688,1.0064,2952.6,2951.7,3.3878722]
[1766076689861,1.0064,2952.6,2951.6,0.3371]
[1766076690586,1.0064,2952.6,2951.7,3.38787676]
[1766076690791,1.0064,2952.6,2951.6,0.3371]
[1766076691091,0.25807,2952.5,2951.6,0.3371]
[1766076691495,1.26447,2952.5,2951.6,0.3371]
[1766076691790,1.26447,2952.5,2951.1,0.405504]
[1766076691791,1.0064,2952.1,2951.2,0.3357]
[1766076692160,2.5807,2952.1,2951.2,0.3357]
[1766076692365,0.25807,2952.0,2951.2,0.3357]
[1766076693068,1.0064,2951.5,2950.6,0.17051288]
[1766076693390,1.0064,2951.5,2950.6,4.43569928]
[1766076693583,1.5743,2951.6,2950.8,3.38890004]
[1766076693781,1.0064,2951.8,2950.8,3.38890004]
[1766076694077,0.25807,2951.7,2950.7,4.18776206]
[1766076694277,1.5743,2951.6,2950.6,0.71151288]
[1766076694482,2.5807,2951.5,2950.6,4.10064321]
[1766076694683,2.5807,2951.5,2950.6,0.71151288]
[1766076695284,1.5743,2951.3,2950.6,0.541]
[1766076695487,2.5807,2951.3,2950.6,0.541]
[1766076696073,1.0064,2951.3,2950.6,0.541]
[1766076696298,0.337977,2951.5,2950.6,0.541]
[1766076697093,0.337977,2951.5,2950.6,0.8734]
[1766076697282,0.337977,2951.5,2950.6,1.29966305]
[1766076697477,0.337977,2951.5,2950.6,0.96726305]
[1766076697679,1.0064,2951.6,2950.7,0.36569026]
[1766076697879,0.25807,2951.7,2950.7,0.3318]
[1766076698288,0.72245023,2951.7,2950.7,0.3318]
[1766076698771,0.25807,2951.7,2950.7,0.3318]
[1766076698971,1.5494,2952.0,2950.9,0.3311]
[1766076699189,2.01378023,2952.0,2950.9,0.3311]
[1766076700083,1.5494,2952.0,2950.9,0.3311]
[1766076701000,1.5494,2952.0,2950.9,3.38877497]
[1766076701172,1.5494,2952.0,2951.0,0.3299]
[1766076701503,2.24695024,2952.0,2951.0,0.7017675]
[1766076701799,2.24695024,2952.0,2951.1,0.3293]
[1766076703079,2.24695024,2952.0,2951.0,0.3718675]
[1766076703080,1.0256,2951.8,2951.0,0.3718675]
[1766076703399,1.0256,2951.8,2950.8,0.3281]
[1766076703606,1.0256,2951.7,2950.9,0.541]
[1766076704172,0.46438023,2951.9,2950.9,0.541]
[1766076704470,1.48998023,2951.9,2951.0,0.3275]
[1766076704665,1.4667,2951.6,2950.7,0.3269]
[1766076704869,1.4667,2951.6,2950.1,0.3269]
[1766076704870,1.4667,2951.3,2950.1,0.3269]
[1766076705102,1.0256,2951.5,2950.4,0.3269]
[1766076705302,1.0256,2951.4,2950.5,0.71058716]
[1766076705475,2.4923,2951.4,2950.5,0.71058716]
[1766076705885,1.4667,2951.4,2950.5,0.71058716]
[1766076706572,1.4667,2951.2,2950.0,0.3268]
[1766076706773,1.4667,2950.5,2949.1,0.3258]
[1766076706971,6.7792014,2950.2,2949.0,0.001]
[1766076707202,1.4667,2950.1,2949.0,0.001]
[1766076707389,1.4667,2949.9,2949.0,0.001]
[1766076707708,1.4667,2949.9,2949.1,0.33920946]
[1766076708003,2.4923,2949.9,2949.1,0.33920946]
[1766076708400,2.4923,2949.9,2949.0,0.46538023]
[1766076708401,1.4667,2949.8,2949.0,0.001]
[1766076708702,0.46438023,2949.9,2949.0,0.001]
[1766076708904,2.4923,2949.6,2949.0,0.001]
[1766076709612,2.4923,2949.6,2949.3,0.001]
[1766076711914,0.46438023,2949.9,2949.3,0.001]
[1766076712215,3.47755677,2950.4,2949.3,0.324]
[1766076712216,1.93108023,2950.3,2949.3,0.324]
[1766076712512,0.46438023,2950.1,2949.3,0.324]
[1766076712889,0.541,2950.2,2949.3,0.324]
[1766076713119,1.0256,2950.0,2949.3,0.001]
[1766076713423,2.4923,2950.0,2949.3,0.001]
[1766076714082,1.0256,2950.0,2949.3,0.001]
[1766076714506,1.48998023,2950.0,2949.3,0.001]
[1766076714712,0.46438023,2950.0,2949.3,0.3224]
[1766076715519,1.48998023,2950.3,2949.3,0.3224]
[1766076715717,0.64343236,2950.2,2949.3,0.3224]
[1766076716097,0.46438023,2950.1,2949.3,0.3224]
[1766076716701,0.46438023,2950.1,2949.3,3.71303215]
[1766076716902,2.4923,2950.2,2949.3,0.3224]
[1766076717313,3.85381236,2950.4,2949.4,0.3203]
[1766076717314,1.0256,2950.4,2949.4,0.3203]
[1766076717519,2.4923,2950.4,2949.5,0.71025546]
[1766076718316,2.4923,2950.4,2949.5,1.03005546]
[1766076719030,1.0256,2950.2,2949.5,0.71025546]
[1766076719229,0.17624728,2950.5,2949.4,0.3193]
[1766076719230,1.20184728,2950.5,2949.4,0.3193]
[1766076719538,1.0256,2950.4,2949.5,0.3188]
[1766076719740,0.17624728,2950.5,2949.5,0.3188]
[1766076720526,1.0256,2950.5,2949.5,0.3188]
[1766076720708,1.0256,2950.5,2949.6,0.68882448]
[1766076720906,1.0256,2950.5,2949.7,0.3179]
[1766076721110,2.4196,2950.9,2949.7,0.3179]
[1766076721613,2.4196,2950.9,2949.9,0.3174]
[1766076722209,1.4363,2950.5,2949.6,0.37092448]
[1766076722413,0.9833,2950.7,2949.4,3.39046732]
[1766076722614,2.4196,2950.4,2949.5,3.39040177]
[1766076722811,6.86587205,2950.9,2949.3,0.001]
[1766076722812,1.4363,2950.1,2949.3,0.001]
[1766076723045,1.4363,2949.7,2949.0,0.001]
[1766076723226,2.4196,2949.5,2949.0,0.001]
[1766076724803,0.9833,2949.2,2948.2,0.316]
[1766076725006,2.4196,2949.1,2948.2,0.316]
[1766076725206,2.4196,2949.0,2948.3,3.39176257]
[1766076725742,2.4196,2949.0,2948.2,3.85628037]
[1766076726039,1.4363,2949.5,2948.3,0.3165]
[1766076726212,2.4196,2949.2,2948.4,0.41727804]
[1766076726412,0.9833,2949.1,2948.4,0.41727804]
[1766076726720,1.4363,2949.0,2948.1,0.001]
[1766076726905,0.9833,2948.5,2948.1,0.001]
[1766076727106,2.4196,2948.3,2948.0,0.001]